bitfinex-derivatives/quotes_SOLF0:USTF0_20260202
["timestamp","ask_amount","ask_price","bid_price","bid_amount"]
[1770045549288,7.29622745,104.73,104.64,19.98587793]
[1770045549488,141.10062745,104.73,104.64,19.98587793]
[1770045549698,7.29622745,104.71,104.62,19.99020191]
[1770045550093,7.29622745,104.71,104.63,19.99020191]
[1770045550896,15.89982745,104.71,104.63,28.59980191]
[1770045551497,8.6043,104.7,104.63,19.99020191]
[1770045551696,133.8068,104.73,104.64,20.00785156]
[1770045551894,133.8168,104.72,104.64,20.00785156]
[1770045552095,149.70522745,104.73,104.64,20.00785156]
[1770045552298,141.07562745,104.75,104.65,153.91195156]
[1770045552501,8.601,104.74,104.66,28.61495156]
[1770045552703,133.782,104.75,104.66,20.00785156]
[1770045553002,133.808,104.73,104.66,20.00785156]
[1770045553202,8.6029,104.72,104.66,20.00785156]
[1770045553593,8.6029,104.72,104.64,8.6089]
[1770045554002,133.8216,104.72,104.63,20.00785156]
[1770045554497,8.6031,104.72,104.64,20.01223239]
[1770045554702,141.09052745,104.74,104.64,20.01223239]
[1770045554897,7.29622745,104.74,104.66,8.6067]
[1770045555099,8.6003,104.75,104.67,20.01223239]
[1770045555600,8.6018,104.73,104.67,20.01223239]
[1770045555998,133.7785,104.75,104.67,20.01223239]
[1770045556201,8.602,104.73,104.67,20.01223239]
[1770045557203,8.6026,104.72,104.67,20.01223239]
[1770045557600,327.39622745,104.76,104.67,20.01223239]
[1770045557802,133.7654,104.75,104.65,20.00460114]
[1770045558104,133.7784,104.74,104.65,20.00460114]
[1770045559003,133.7973,104.73,104.65,20.00460114]
[1770045559600,8.6017,104.72,104.65,20.00460114]
[1770045560105,133.7973,104.73,104.63,19.85580772]
[1770045560302,141.07462745,104.74,104.63,19.85580772]
[1770045560303,133.7784,104.74,104.64,19.85580772]
[1770045560701,8.6028,104.71,104.64,19.85580772]
[1770045561098,141.07462745,104.74,104.64,19.85580772]
[1770045561604,8.6003,104.74,104.66,19.85580772]
[1770045561807,133.7197,104.79,104.69,19.80248773]
[1770045562109,133.6919,104.81,104.72,19.80248773]
[1770045562407,133.7194,104.79,104.69,19.80248773]
[1770045563007,8.5977,104.77,104.7,28.40568773]
[1770045563808,8.5984,104.76,104.7,19.80248773]
[1770045564803,140.99742745,104.8,104.7,19.80248773]
[1770045565002,133.7146,104.79,104.7,19.80887559]
[1770045565203,133.728,104.78,104.7,19.80887559]
[1770045565510,133.728,104.78,104.7,361.42887559]
[1770045565712,8.5984,104.76,104.7,361.42887559]
[1770045566412,8.5974,104.78,104.71,19.70429022]
[1770045566614,133.7036,104.8,104.72,19.70429022]
[1770045567213,133.67,104.83,104.73,19.70429022]
[1770045567414,133.6757,104.82,104.73,361.80429022]
[1770045567811,133.645,104.85,104.75,19.68279647]
[1770045568012,133.6247,104.86,104.77,19.68279647]
[1770045568307,133.663,104.83,104.76,342.2]
[1770045568509,133.6785,104.82,104.74,19.68279647]
[1770045568814,267.3914,104.81,104.74,19.68279647]
[1770045569016,8.5959,104.79,104.74,19.68279647]
[1770045569217,133.7032,104.8,104.71,361.96279647]
[1770045569410,133.7157,104.79,104.71,19.68279647]
[1770045569612,133.7271,104.78,104.71,19.68279647]
[1770045569808,133.7271,104.78,104.69,342.14]
[1770045569809,133.7435,104.77,104.69,342.14]
[1770045570012,133.7525,104.76,104.69,342.14]
[1770045570711,133.7271,104.78,104.69,361.84682422]
[1770045570909,8.5991,104.76,104.69,361.84682422]
[1770045571111,133.7409,104.77,104.69,361.84682422]
[1770045572310,133.7271,104.78,104.69,361.84682422]
[1770045573016,141.01192745,104.79,104.71,19.71534636]
[1770045574006,190.96,104.91,104.71,19.71534636]
[1770045574007,133.6286,104.86,104.76,5.39707556]
[1770045574512,133.6292,104.86,104.77,5.39707556]
[1770045575310,8.592,104.84,104.77,13.99447556]
[1770045576513,133.6292,104.86,104.77,13.99447556]
[1770045576813,133.6183,104.87,104.77,13.99447556]
[1770045577114,8.5913,104.85,104.77,13.99447556]
[1770045577317,8.5913,104.85,104.78,5.46282858]
[1770045577713,8.5898,104.87,104.79,5.49757681]
[1770045578315,142.1762,104.89,104.8,5.49757681]
[1770045578516,133.5881,104.89,104.8,5.49757681]
[1770045578820,8.5887,104.88,104.8,14.09237681]
[1770045579917,267.0856,104.93,104.84,5.49774823]
[1770045580110,133.5484,104.92,104.84,5.49774823]
[1770045580314,8.5857,104.92,104.84,5.49774823]
[1770045580519,140.80942745,104.95,104.84,5.49774823]
[1770045580715,133.523,104.94,104.84,5.49774823]
[1770045581015,133.523,104.94,104.85,5.49774823]
[1770045581016,8.5846,104.93,104.85,5.49774823]
[1770045582315,133.5521,104.92,104.85,5.49774823]
[1770045582523,133.4908,104.97,104.88,5.50037437]
[1770045582718,274.22712745,104.99,104.89,5.50037437]
[1770045583019,133.4605,104.99,104.9,14.08697437]
[1770045583616,8.5805,104.98,104.91,5.50762611]
[1770045584222,133.4605,104.99,104.91,5.50762611]
[1770045584223,8.5774,105.02,104.94,5.50762611]
[1770045584921,141.9807,105.04,104.94,14.09082611]
[1770045585125,453.0936,105.06,104.96,5.50762611]
[1770045585724,141.959,105.05,104.97,5.50762611]
[1770045586119,141.9742,105.04,104.97,5.50762611]
[1770045586325,133.4095,105.03,104.94,355.5975786]
[1770045586526,133.3984,105.04,104.94,355.5975786]
[1770045586718,133.384,105.05,104.96,5.4944786]
[1770045587023,133.3836,105.05,104.97,5.4944786]
[1770045587324,453.0927,105.06,104.97,5.4944786]
[1770045587527,133.2861,105.13,105.03,133.4063]
[1770045587717,133.2642,105.15,105.04,138.65465116]
[1770045588028,141.8378,105.14,105.04,13.84195116]
[1770045588322,133.298,105.12,105.03,5.26735116]
[1770045588623,133.298,105.12,105.02,341.3]
[1770045588624,133.3224,105.1,105.02,341.3]
[1770045588823,140.61862745,105.1,105.02,341.3]
[1770045589123,140.61862745,105.1,105.0,5.26735116]
[1770045589323,140.61862745,105.1,105.01,5.26735116]
[1770045589324,8.5717,105.09,105.01,5.26735116]
[1770045589526,8.5717,105.09,104.98,5.26735116]
[1770045589527,133.3576,105.07,104.98,5.26735116]
[1770045589719,15.87072745,105.06,104.98,5.26735116]
[1770045590121,140.64222745,105.08,104.98,5.26735116]
[1770045590320,140.64222745,105.08,104.98,138.73885116]
[1770045590622,149.21482745,105.08,104.98,13.84725116]
[1770045591224,141.9309,105.07,104.98,13.84725116]
[1770045591727,8.5732,105.07,104.98,13.84725116]
[1770045592625,8.5732,105.07,104.98,147.31895116]
[1770045592825,8.5732,105.07,104.98,13.84725116]
[1770045592826,141.934,105.07,104.98,13.84725116]
[1770045593125,8.5732,105.07,104.98,13.84725116]
[1770045593325,327.8332,105.07,104.98,13.84725116]
[1770045593825,8.5718,105.09,105.0,5.14442952]
[1770045594018,459.89132745,105.11,105.01,5.14442952]
[1770045594628,140.63452745,105.09,105.01,5.14442952]
[1770045594817,133.3628,105.07,104.98,5.14442952]
[1770045595128,141.9444,105.06,104.98,5.14442952]
[1770045595325,8.5741,105.06,104.98,5.14442952]
[1770045595724,141.919,105.08,104.99,5.18693409]
[1770045596028,8.5727,105.08,104.99,5.18693409]
[1770045596325,8.5733,105.07,104.99,5.18693409]
[1770045597424,335.14802745,105.09,105.0,5.18693409]
[1770045597624,133.3475,105.08,105.0,5.18693409]
[1770045597828,7.29622745,105.07,104.98,5.22039663]
[1770045598025,8.5733,105.07,104.99,13.79959663]
[1770045598730,8.5741,105.06,104.99,5.22039663]
[1770045598918,133.3708,105.06,104.99,5.22039663]
[1770045599121,133.3708,105.06,104.96,340.26]
[1770045599328,140.68062745,105.05,104.96,345.48039663]
[1770045599519,7.29622745,105.05,104.97,5.22039663]
[1770045599827,15.87092745,105.05,104.97,13.80109663]
[1770045600025,140.68072745,105.05,104.97,5.22039663]
[1770045600223,133.3974,105.04,104.95,8.5821]
[1770045600625,133.4211,105.02,104.94,5.19930605]
[1770045601026,8.5788,105.0,104.92,5.19930605]
[1770045601226,140.70552745,105.03,104.93,5.19930605]
[1770045601427,459.84552745,105.03,104.93,5.19930605]
[1770045601632,7.29622745,105.05,104.96,5.18772874]
[1770045601820,140.67212745,105.06,104.97,5.18772874]
[1770045602222,133.3833,105.05,104.97,5.18772874]
[1770045602723,133.3978,105.04,104.94,344.36772874]
[1770045602928,133.3978,105.04,104.95,5.18772874]
[1770045603129,140.71792745,105.02,104.93,13.77142874]
[1770045603424,459.83792745,105.02,104.93,13.77142874]
[1770045603619,15.87222745,105.04,104.95,5.19518263]
[1770045603822,140.69292745,105.04,104.95,5.19518263]
[1770045604024,133.3801,105.06,104.96,5.19518263]
[1770045604318,140.69482745,105.04,104.94,5.19518263]
[1770045604629,7.29622745,105.04,104.95,5.19518263]
[1770045604826,133.4089,105.03,104.95,5.19518263]
[1770045605022,133.4223,105.02,104.95,5.19518263]
[1770045605223,8.5778,105.02,104.95,5.19518263]
[1770045605429,452.4786,105.06,104.96,5.19518263]
[1770045605725,162.0035,105.1,105.0,5.18324271]
[1770045605925,140.67092745,105.06,104.97,5.18324271]
[1770045606323,8.5749,105.05,104.98,5.18324271]
[1770045606526,133.3593,105.07,104.98,5.18324271]
[1770045607032,133.3739,105.06,104.98,5.18324271]
[1770045608129,8.5754,105.04,104.98,13.76344271]
[1770045608320,453.0193,105.07,104.98,13.76344271]
[1770045608527,460.27706198,105.07,104.98,13.76344271]
[1770045608923,133.3704,105.06,104.98,5.18324271]
[1770045609330,140.61706198,105.07,104.98,5.18324271]
[1770045610129,133.3859,105.05,104.98,5.18324271]
[1770045610322,133.3757,105.06,104.98,5.18324271]
[1770045610728,140.61706198,105.07,104.98,5.18324271]
[1770045610928,133.3474,105.08,104.98,5.18324271]
[1770045611128,7.25776198,105.09,104.99,5.1184015]
[1770045611129,460.55116198,105.09,104.99,5.1184015]
[1770045611536,133.3577,105.07,104.99,5.1184015]
[1770045611939,133.3334,105.09,105.0,5.11601678]
[1770045612134,133.3291,105.1,105.01,5.11601678]
[1770045612329,133.3025,105.12,105.01,5.11601678]
[1770045612541,133.3025,105.12,105.04,5.11601678]
[1770045612837,133.3073,105.11,105.04,5.11601678]
[1770045613037,8.5713,105.09,105.04,5.11601678]
[1770045613432,8.5697,105.12,105.04,13.69131678]
[1770045613635,133.282,105.13,105.04,5.11601678]
[1770045614139,8.5687,105.13,105.06,5.08962064]
[1770045614441,266.597,105.12,105.03,5.08962064]
[1770045614839,133.3098,105.11,105.01,346.057]
[1770045615043,133.3609,105.07,105.0,5.08962064]
[1770045615341,8.5755,105.04,104.98,8.5797]
[1770045615643,133.3609,105.07,104.97,5.08962064]
[1770045615840,140.60906198,105.08,104.98,5.04688205]
[1770045616542,133.3577,105.07,104.98,5.04688205]
[1770045617039,140.63056198,105.06,104.98,5.04688205]
[1770045617336,133.3867,105.05,104.98,5.04688205]
[1770045618039,140.60906198,105.08,104.98,5.04688205]
[1770045618738,133.3735,105.06,104.98,5.04688205]
[1770045619144,133.387,105.05,104.98,5.04688205]
[1770045619345,8.5753,105.05,104.98,5.04688205]
[1770045619651,133.3735,105.06,104.98,5.04688205]
[1770045620141,140.61616198,105.07,104.98,13.62698205]
[1770045620341,133.3725,105.06,104.98,5.04688205]
[1770045620548,133.385,105.05,104.98,5.04688205]
[1770045620743,140.64276198,105.05,104.96,336.38]
[1770045620943,140.64276198,105.05,104.96,341.43212718]
[1770045621143,8.5763,105.03,104.96,341.43212718]
[1770045621344,140.64276198,105.05,104.96,341.43212718]
[1770045621741,8.5762,105.03,104.96,341.43212718]
[1770045622945,8.5773,105.02,104.96,5.05212718]
[1770045623146,133.4228,105.02,104.93,5.1387932]
[1770045623742,133.4468,105.0,104.93,5.1387932]
[1770045623941,28.68,105.03,104.95,5.15854279]
[1770045624146,133.3918,105.05,104.96,5.15854279]
[1770045624849,140.60336198,105.08,104.99,5.15854279]
[1770045625148,133.3113,105.11,105.01,5.15854279]
[1770045625345,133.3343,105.09,105.01,5.15854279]
[1770045625647,133.3577,105.07,104.98,342.08548367]
[1770045626048,133.3452,105.08,104.99,5.16548367]
[1770045626644,133.3708,105.06,104.97,5.16548367]
[1770045626843,133.3611,105.07,104.97,5.16548367]
[1770045627042,140.60296198,105.08,104.99,5.16548367]
[1770045627043,8.5729,105.08,104.99,5.16548367]
[1770045627244,133.3035,105.12,105.02,5.16548367]
[1770045627644,133.3076,105.11,105.02,5.16548367]
[1770045627848,133.3479,105.08,105.0,336.84]
[1770045628550,8.5739,105.06,105.0,336.84]
[1770045629451,8.5739,105.06,104.99,4.99250755]
[1770045629751,8.5739,105.06,104.95,4.86633806]
[1770045629752,133.4105,105.03,104.95,4.86633806]
[1770045629954,133.3998,105.04,104.95,4.86633806]
[1770045630252,8.5776,105.02,104.95,13.44903806]
[1770045630839,8.578,105.01,104.95,4.86633806]
[1770045631041,133.409,105.03,104.93,4.86633806]
[1770045631042,133.4298,105.02,104.93,4.86633806]
[1770045631951,8.5787,105.0,104.94,4.85843212]
[1770045632148,133.409,105.03,104.94,4.85843212]
[1770045632352,133.3998,105.04,104.94,4.85843212]
[1770045632554,133.3998,105.04,104.95,4.85843212]
[1770045632846,7.25776198,105.05,104.95,4.85843212]
[1770045632847,7.25776198,105.05,104.96,341.83843212]
[1770045633052,133.3772,105.06,104.97,4.85843212]
[1770045633242,8.5757,105.04,104.97,4.85843212]
[1770045633752,133.4003,105.04,104.96,336.98]
[1770045634148,141.9762,105.04,104.96,345.5618]
[1770045634352,140.64246198,105.05,104.96,345.5618]
[1770045635052,8.5774,105.02,104.96,336.98]
[1770045635350,140.64246198,105.05,104.96,336.98]
[1770045635552,133.3979,105.04,104.96,336.98]
[1770045636148,8.5762,105.04,104.96,350.42413438]
[1770045636355,133.3968,105.04,104.96,350.42413438]
[1770045636548,7.25776198,105.05,104.96,341.84243438]
[1770045636757,7.25776198,105.05,104.96,353.12028585]
[1770045637459,8.5761,105.04,104.97,8.581]
[1770045637654,140.64176198,105.05,104.97,8.581]
[1770045637851,8.578,105.01,104.95,11.27785147]
[1770045638052,133.4231,105.02,104.93,16.10638219]
[1770045638248,133.4231,105.02,104.93,4.82853072]
[1770045638450,8.5795,104.99,104.93,13.41293072]
[1770045640360,8.5795,104.99,104.93,4.82853072]
[1770045640657,133.4107,105.03,104.94,4.83447587]
[1770045640658,140.66846198,105.03,104.94,4.83447587]
[1770045640859,133.3999,105.04,104.95,4.83447587]
[1770045641158,8.5753,105.05,104.97,4.83447587]
[1770045641362,7.25776198,105.1,105.01,138.26267587]
[1770045641549,7.25776198,105.12,105.03,138.24207587]
[1770045641756,7.25776198,105.12,105.03,4.83447587]
[1770045642257,133.3094,105.11,105.03,4.83447587]
[1770045642654,133.333,105.09,105.0,352.93953234]
[1770045643057,133.3094,105.11,105.02,13.41823234]
[1770045643255,140.55926198,105.12,105.03,4.84153234]
[1770045643556,140.53536198,105.14,105.05,4.84153234]
[1770045643863,133.308,105.11,105.03,11.27785147]
[1770045644157,133.308,105.11,105.02,4.85153575]
[1770045644547,141.8905,105.1,105.02,4.85153575]
[1770045645155,8.5694,105.12,105.03,4.85153575]
[1770045645361,7.25776198,105.14,105.05,4.85153575]
[1770045645566,140.52716198,105.14,105.05,4.85153575]
[1770045645758,133.2819,105.13,105.05,4.85153575]
[1770045646655,8.5691,105.12,105.05,4.85153575]
[1770045646861,133.2948,105.12,105.05,4.85153575]
[1770045647057,133.3333,105.09,105.02,16.13637806]
[1770045647357,133.3333,105.09,105.0,4.85852659]
[1770045647558,133.3228,105.1,105.0,4.85852659]
[1770045647862,133.3228,105.1,105.0,16.13637806]
[1770045648060,133.3228,105.1,105.01,4.81522118]
[1770045648262,140.56726198,105.11,105.02,4.81522118]
[1770045648451,327.47776198,105.12,105.04,4.81522118]
[1770045648656,8.569,105.12,105.04,13.39022118]
[1770045648958,140.54606198,105.13,105.04,13.39022118]
[1770045649354,8.5687,105.13,105.05,8.5744]
[1770045649558,133.2819,105.13,105.05,8.5744]
[1770045649861,133.2819,105.13,105.04,4.81522118]
[1770045649862,266.6005,105.12,105.04,4.81522118]
[1770045650858,133.3205,105.1,105.01,4.82004048]
[1770045651059,140.61586198,105.07,104.98,354.41789195]
[1770045651263,140.64676198,105.05,104.95,138.32924048]
[1770045651464,133.4088,105.03,104.95,4.82004048]
[1770045651664,133.4084,105.03,104.95,4.82004048]
[1770045651861,8.578,105.01,104.94,4.82075785]
[1770045652062,140.64676198,105.05,104.96,4.82075785]
[1770045652262,7.25776198,105.05,104.96,4.82075785]
[1770045652457,15.83296198,105.05,104.97,8.5809]
[1770045652662,8.5752,105.05,104.97,13.40165785]
[1770045652865,133.3964,105.04,104.97,4.82075785]
[1770045653055,133.4369,105.01,104.92,4.82075785]
[1770045653256,133.449,105.0,104.92,4.82075785]
[1770045653557,8.5798,104.99,104.92,4.82075785]
[1770045653757,133.449,105.0,104.92,4.82075785]
[1770045653955,142.0001,105.02,104.93,4.81638963]
[1770045654157,133.4084,105.03,104.94,4.81638963]
[1770045654361,133.4234,105.02,104.94,4.81638963]
[1770045654863,8.5777,105.02,104.94,4.81638963]
[1770045655065,133.3923,105.05,104.95,4.81638963]
[1770045655470,454.1535,105.06,104.97,4.81638963]
[1770045655656,320.78,105.06,104.97,4.81638963]
[1770045655861,320.78,105.06,104.97,138.30058963]
[1770045656161,8.5734,105.07,104.99,4.82242831]
[1770045656563,7.25776198,105.09,104.99,138.27942831]
[1770045656765,15.82956198,105.09,105.0,13.40072831]
[1770045657169,133.3456,105.08,105.0,4.82242831]
[1770045657367,8.5726,105.08,105.0,4.82242831]
[1770045657570,133.3626,105.07,105.0,4.82242831]
[1770045657867,8.5741,105.06,104.98,4.85119791]
[1770045659176,133.3997,105.04,104.95,4.85119791]
[1770045659378,266.8023,105.04,104.95,4.85119791]
[1770045659579,133.4084,105.03,104.95,4.85119791]
[1770045659971,133.3768,105.06,104.97,4.88006961]
[1770045660178,133.3988,105.04,104.94,4.88006961]
[1770045660479,149.21576198,105.05,104.97,4.88006961]
[1770045660676,133.3454,105.08,104.98,4.88006961]
[1770045660870,140.60316198,105.08,104.98,4.88006961]
[1770045661074,8.574,105.06,104.98,4.88006961]
[1770045661278,140.60316198,105.08,104.98,138.35016961]
[1770045661473,140.56476198,105.11,105.03,8.576]
[1770045661680,133.32,105.1,105.02,4.88006961]
[1770045661876,133.32,105.1,104.99,344.85776198]
[1770045661877,133.3463,105.08,104.99,344.85776198]
[1770045662075,8.572,105.09,105.0,4.88351104]
[1770045662277,8.572,105.09,105.01,4.88351104]
[1770045662473,140.54776198,105.13,105.03,4.88351104]
[1770045662686,133.3216,105.1,105.01,7.25776198]
[1770045662976,328.31776198,105.15,105.06,138.25331104]
[1770045663177,133.2,105.2,105.09,4.88351104]
[1770045663376,133.2078,105.19,105.1,4.88351104]
[1770045663582,8.5636,105.19,105.1,138.20201104]
[1770045663782,141.7763,105.19,105.1,4.88351104]
[1770045663983,133.2192,105.18,105.1,4.88351104]
[1770045664278,133.2568,105.15,105.06,4.94613065]
[1770045664479,133.2746,105.14,105.06,4.94613065]
[1770045664780,8.5679,105.14,105.06,4.94613065]
[1770045665077,133.2316,105.17,105.07,4.94613065]
[1770045665480,133.2193,105.18,105.1,4.94613065]
[1770045665681,133.2325,105.17,105.07,4.76901932]
[1770045665874,141.8388,105.14,105.05,337.52]
[1770045666079,133.283,105.13,105.05,337.52]
[1770045666478,133.283,105.13,105.04,4.76901932]
[1770045666674,133.2453,105.16,105.06,4.76901932]
[1770045666979,454.5451,105.18,105.09,4.76901932]
[1770045667174,8.564,105.18,105.09,4.76901932]
[1770045667375,7.25776198,105.22,105.12,138.06241932]
[1770045667580,133.1604,105.23,105.12,138.06241932]
[1770045667777,133.1548,105.23,105.13,146.58489339]
[1770045667972,133.1548,105.23,105.13,4.73699339]
[1770045668173,133.1818,105.21,105.13,4.73699339]
[1770045668379,133.223,105.18,105.08,11.99475537]
[1770045668675,133.2087,105.19,105.09,4.73699339]
[1770045668873,133.2353,105.17,105.09,4.73699339]
[1770045669082,133.198,105.2,105.1,4.73699339]
[1770045669282,7.25776198,105.21,105.11,4.73699339]
[1770045669485,8.5619,105.21,105.12,13.30549339]
[1770045669679,133.1809,105.21,105.12,4.73699339]
[1770045669889,133.1934,105.2,105.12,4.73699339]
[1770045670179,8.5627,105.2,105.12,4.73699339]
[1770045670586,133.1936,105.2,105.12,4.73699339]
[1770045670784,141.7692,105.19,105.12,4.73699339]
[1770045670987,141.7692,105.19,105.09,4.7385958]
[1770045670988,133.2184,105.18,105.09,4.7385958]
[1770045671285,133.1769,105.22,105.12,138.0289958]
[1770045671481,133.1769,105.22,105.12,145.26457398]
[1770045671876,8.5621,105.21,105.12,153.83387398]
[1770045672276,8.5626,105.2,105.12,13.3070958]
[1770045672482,133.1961,105.2,105.12,4.7385958]
[1770045673285,133.1769,105.22,105.13,4.6482193]
[1770045673482,133.1808,105.21,105.13,4.6482193]
[1770045673687,133.2078,105.19,105.1,13.2184193]
[1770045673889,133.2078,105.19,105.1,4.6482193]
[1770045674486,8.5643,105.18,105.1,4.6482193]
[1770045674790,133.2308,105.17,105.09,337.34]
[1770045675088,140.45717818,105.18,105.09,337.34]
[1770045675488,141.7978,105.17,105.09,337.34]
[1770045675884,133.2078,105.19,105.09,137.97800974]
[1770045676084,8.5641,105.18,105.1,13.21690974]
[1770045676291,266.4027,105.2,105.11,4.64660974]
[1770045676483,133.2057,105.19,105.11,4.64660974]
[1770045676686,133.2057,105.19,105.09,342.12660974]
[1770045677085,8.5666,105.15,105.06,145.24958792]
[1770045677290,133.2599,105.15,105.06,4.64660974]
[1770045677588,8.5653,105.17,105.09,8.5711]
[1770045677789,133.2315,105.17,105.08,4.64660974]
[1770045678089,8.5657,105.16,105.08,13.21850974]
[1770045678889,8.5665,105.15,105.08,13.21850974]
[1770045679285,140.45467818,105.18,105.09,8.5712]
[1770045679489,8.5657,105.16,105.09,8.5712]
[1770045679989,8.5657,105.16,105.08,4.64660974]
[1770045680586,8.5657,105.16,105.09,8.5712]
[1770045680983,133.2319,105.17,105.08,4.64660974]
[1770045681183,140.47987818,105.16,105.08,4.64660974]
[1770045681388,140.50517818,105.14,105.05,4.73000828]
[1770045681591,133.2973,105.12,105.05,4.73000828]
[1770045681788,140.50517818,105.14,105.05,4.73000828]
[1770045682094,8.5706,105.1,105.03,707.62110001]
[1770045682390,133.2844,105.13,105.04,4.75097406]
[1770045682885,8.5686,105.13,105.05,8.5743]
[1770045683190,133.2578,105.15,105.05,4.75097406]
[1770045683386,8.569,105.12,105.05,4.75097406]
[1770045683594,133.2821,105.13,105.05,4.75097406]
[1770045684094,8.5697,105.11,105.05,4.75097406]
[1770045684293,133.2947,105.12,105.05,4.75097406]
[1770045684486,8.5697,105.12,105.05,4.75097406]
[1770045684887,133.2844,105.13,105.05,4.75097406]
[1770045685187,140.47437818,105.17,105.07,4.79155645]
[1770045685392,133.2435,105.16,105.07,4.79155645]
[1770045685593,8.5673,105.14,105.07,4.79155645]
[1770045685895,140.47907818,105.16,105.07,4.79155645]
[1770045686086,8.5672,105.15,105.08,8.572]
[1770045686287,140.47907818,105.16,105.07,4.79155645]
[1770045686488,133.2565,105.15,105.07,4.79155645]
[1770045686686,8.5681,105.13,105.07,4.79155645]
[1770045686887,133.2565,105.15,105.07,4.79155645]
[1770045686888,454.3501,105.19,105.09,138.15165157]
[1770045687088,133.1381,105.25,105.14,138.08105157]
[1770045687293,133.1245,105.26,105.15,474.99555157]
[1770045687493,133.1126,105.27,105.17,133.2307]
[1770045687788,133.0953,105.28,105.18,12.0838838]
[1770045687992,133.0571,105.31,105.2,140.42337818]
[1770045688190,133.0679,105.3,105.2,344.31557818]
[1770045688584,133.0954,105.28,105.2,337.08]
[1770045688793,133.0954,105.28,105.16,133.2432]
[1770045688794,133.1303,105.25,105.16,341.98830562]
[1770045689293,133.132,105.25,105.17,4.84830562]
[1770045689491,133.1043,105.27,105.17,145.3138838]
[1770045689695,8.5569,105.27,105.19,13.47258373]
[1770045690395,133.1179,105.26,105.19,4.90958373]
[1770045690693,133.1045,105.27,105.19,4.90958373]
[1770045690893,133.1315,105.25,105.16,342.04958373]
[1770045691093,266.3257,105.23,105.13,4.90958373]
[1770045691294,133.1315,105.25,105.15,4.90958373]
[1770045691490,8.5605,105.23,105.15,13.47548373]
[1770045692088,133.1679,105.22,105.15,4.90958373]
[1770045692291,133.1679,105.22,105.13,342.37266761]
[1770045692493,133.1938,105.2,105.13,4.95266761]
[1770045692698,8.5634,105.19,105.13,4.95266761]
[1770045693399,8.5622,105.21,105.14,4.95266761]
[1770045693591,133.1679,105.22,105.14,4.95266761]
[1770045694000,8.5614,105.22,105.14,13.51966761]
[1770045694295,133.1682,105.22,105.14,4.95266761]
[1770045694597,8.5619,105.21,105.14,4.95266761]
[1770045694895,133.1554,105.23,105.14,4.95266761]
[1770045695094,462.06107818,105.26,105.16,138.27678878]
[1770045695294,133.1065,105.27,105.18,5.03658878]
[1770045695598,133.1168,105.26,105.18,5.03658878]
[1770045695904,8.5584,105.25,105.18,13.60038878]
[1770045696192,8.5584,105.25,105.18,5.03658878]
[1770045696596,133.0606,105.31,105.21,133.1763]
[1770045696788,133.0256,105.34,105.24,133.1419]
[1770045696789,140.26117818,105.34,105.24,133.1419]
[1770045696988,133.0288,105.33,105.24,12.29711474]
[1770045697188,133.016,105.34,105.24,5.06153656]
[1770045697389,454.8518,105.36,105.25,12.29711474]
[1770045697692,132.9416,105.4,105.3,138.12260469]
[1770045697890,132.9416,105.4,105.3,138.12470469]
[1770045698093,132.9053,105.43,105.34,5.06010469]
[1770045698289,321.98,105.48,105.37,132.9734]
[1770045698290,132.8529,105.47,105.37,132.9734]
[1770045698500,132.8407,105.48,105.37,132.9728]
[1770045698691,132.8538,105.47,105.38,5.06010469]
[1770045698896,132.8667,105.46,105.38,5.06010469]
[1770045699090,132.8667,105.46,105.35,133.0]
[1770045699091,132.9155,105.42,105.35,5.06010469]
[1770045699297,134.51145389,105.47,105.37,5.06010469]
[1770045699506,132.8528,105.47,105.38,5.06010469]
[1770045699797,140.10077818,105.46,105.35,165.00489496]
[1770045699997,132.8652,105.46,105.36,132.9874]
[1770045700191,7.23557818,105.46,105.36,132.9885]
[1770045700389,132.8428,105.48,105.38,5.00519496]
[1770045700592,7.23557818,105.46,105.36,477.51369496]
[1770045700800,132.878,105.45,105.36,5.00519496]
[1770045700997,148.64337818,105.46,105.36,5.00519496]
[1770045700998,132.8665,105.46,105.36,5.00519496]
[1770045701197,132.8487,105.48,105.37,132.9738]
[1770045701497,2.77948636,105.5,105.43,132.9006]
[1770045701698,8.636e-05,105.5,105.45,132.8707]
[1770045701904,132.722,105.58,105.47,132.851]
[1770045702092,139.98887818,105.55,105.44,132.8888]
[1770045702293,139.98887818,105.55,105.44,137.88814179]